Cogmind - Beta 13 *** ADVENTURER MODE // 2024.07.25 @ 11:55:08 Player: Jefffff Result: Destroyed by Y-54 Guardian with Flak Gun Performance ------------- Evolutions (0) 0 Regions Visited (3) 600 Robots Destroyed (24) 120 Value Destroyed (558) 558 Prototype IDs (10) 200 Alien Tech Used (0) 0 Bonus (0) 0 TOTAL SCORE: 1478 Bonus ------- None Cogmind --------- Core Integrity 0/250 Matter 297/300 Energy 125/125 System Corruption 0% Temperature Cool (12) Movement Rolling (100) Location -7/Recycling Parts ------- > --- POWER (1) -------- Light Ion Engine > --- PROPULSION (2) --- Compact Wheel Compact Wheel > --- UTILITY (2) ------ Armored Scrap Engine > --- WEAPON (2) ------- Assault Rifle Grenade Launcher > --- INVENTORY (5) ---- Huge Storage Unit Large Matter Pod (13) Visual Processing Unit Seismic Detector Power Bank Peak State ------------ > --- POWER ------------ Light Ion Engine > --- PROPULSION ------- Compact Wheel Compact Wheel > --- UTILITY ---------- Armored Scrap Engine > --- WEAPON ----------- Assault Rifle Grenade Launcher > --- INVENTORY -------- Huge Storage Unit Large Matter Pod Visual Processing Unit Seismic Detector Power Bank [Rating: 24] Favorites ----------- Power Light Nuclear Core Engine Light Ion Engine Power Core Light Nuclear Core Propulsion Compact Wheel Leg Aluminum Leg Wheel Compact Wheel Utility Huge Storage Unit Device Heat Sink Storage Huge Storage Unit Weapon Assault Rifle Energy Gun Medium Laser Ballistic Gun Assault Rifle Launcher Grenade Launcher Slashing Weapon Makeshift Sword Build | -11 -10 -10 -7 ------- Run | Yrd Mat Sub Rec Slots Evolved . | . . . . Power . | . . . . Propulsion . | . . . . Utility . | . . . . Weapon . | . . . . Parts Attached 29 | 4 17 7 1 Power 5 | 2 2 1 . Engine 3 | 2 . 1 . Core 2 | . 2 . . Reactor . | . . . . Propulsion 5 | . 5 . . Treads . | . . . . Leg 2 | . 2 . . Wheel 3 | . 3 . . Hover . | . . . . Flight . | . . . . Utility 6 | . 4 1 1 Device 4 | . 2 1 1 Storage 2 | . 2 . . Processor . | . . . . Hackware . | . . . . Protection . | . . . . Artifact . | . . . . Weapon 13 | 2 6 5 . Energy Gun 2 | 1 1 . . Energy Cannon . | . . . . Ballistic Gun 9 | 1 5 3 . Ballistic Cannon . | . . . . Launcher 1 | . . 1 . Special Weapon . | . . . . Impact Weapon . | . . . . Slashing Weapon 1 | . . 1 . Piercing Weapon . | . . . . Special Melee Weapon . | . . . . Unidentified Prototypes . | . . . . Parts Lost 2 | . . 1 1 Power 1 | . . 1 . Propulsion 1 | . . . 1 Utility . | . . . . Weapon . | . . . . Highest Loss Streak 1 | . . 1 1 To Critical Strikes . | . . . . Average Slot Usage (%) 96 | . 94 99 85 Engine 1 | . 2 . 14 Core 12 | . 11 13 . Leg 1 | . 5 . . Wheel 26 | . 22 28 28 Device 13 | . 12 14 14 Storage 11 | . 10 14 . Ballistic Gun 23 | . 26 23 14 Launcher 1 | . . . 14 Slashing Weapon 2 | . . 4 . Naked Turns . | . . . . Heaviest Build 90 | 8 90 90 9 Greatest Support 32 | 3 32 32 32 Greatest Overweight (x) 2 | 2 2 2 . Average Overweight (x) 1 | . 1 2 . Largest Inventory Capacity 25 | 5 25 25 5 Average Capacity 21 | 5 18 25 5 Most Carried 25 | 5 25 25 5 Average Carried 19 | 4 14 24 4 Final Capacity 25 | 5 25 25 5 Final Carried 25 | 5 25 24 5 Scrap Engine Consumption 10 | . . . 10 Class Distribution -------------------- 100% | Mutant Dominant Class ---------------- Mutant | -10/Materials Mutant | -10/Subcaves Mutant | -7/Recycling Resources | -11 -10 -10 -7 ----------- Run | Yrd Mat Sub Rec Matter Collected 1175 | 201 201 569 204 Remotely . | . . . . Salvage Created 794 | . 433 306 55 Parts 57 | . 26 30 1 Haulers Intercepted 2 | . 2 . . Recyclers Shooed 1 | . . . 1 Parts Field Recycled . | . . . . Retrieved Matter . | . . . . Parts Self-Destructed 17 | . . 17 . Prevented . | . . . . Kills | -11 -10 -10 -7 ------- Run | Yrd Mat Sub Rec Combat Hostiles Destroyed 17 | . 8 9 . Guns 17 | . 8 9 . Classes Destroyed 6 | . 4 2 . Hauler 2 | . 2 . . Turret 2 | . . 2 . Watcher 3 | . 3 . . Swarmer 8 | . 3 5 . Grunt 5 | . 5 . . Subdweller 4 | . . 4 . Best Kill Streak 4 | . 4 3 . Combat Bots Only 4 | . 4 3 . Max Kills in Single Turn 2 | . 2 1 . Gunslinging 1 | . 1 . . Exploded . | . . . . Melee . | . . . . Uniques/NPCs Destroyed . | . . . . Combat | -11 -10 -10 -7 -------- Run | Yrd Mat Sub Rec Hostile Shots Fired 128 | . 54 65 9 Missed 42 | . 14 26 2 Damage Taken 776 | . 374 382 20 Core 250 | . 108 130 12 Absorbed by Shields . | . . . . Ignored by Resistances 224 | . 113 104 7 Core Remaining (%) 100 | 100 . . . Volleys Fired 97 | . 50 37 10 Largest 2 | . 2 2 1 Hottest 70 | . 70 50 20 Shots Fired 172 | . 100 62 10 Gun 159 | . 100 49 10 Cannon . | . . . . Launcher 13 | . . 13 . Special . | . . . . Kinetic 146 | . 87 49 10 Thermal 13 | . 13 . . Explosive 13 | . . 13 . Electromagnetic . | . . . . Robot Hit Streak 24 | . 17 24 15 Robot Miss Streak 3 | . 3 3 . Penetration Max . | . . . . Secondary Targets 4 | . 3 1 . Max Gunslinging Chain 1 | . 1 1 . Shots Hit Robots 110 | . 70 30 10 Core Hits 55 | . 27 26 2 Critical Kills . | . . . . Critical Parts Destroyed 1 | . 1 . . Critical Strikes 1 | . 1 . . Destroy 1 | . 1 . . Melee Attacks 23 | . . 23 . Impact . | . . . . Slashing 23 | . . 23 . Piercing . | . . . . Sneak Attacks . | . . . . Combat Hostiles . | . . . . Follow-up Attacks . | . . . . Damage Inflicted 1511 | . 800 581 130 Guns 1314 | . 800 384 130 Cannons . | . . . . Explosions 197 | . . 197 . Melee . | . . . . Ramming . | . . . . Kinetic 1177 | . 663 384 130 Thermal 137 | . 137 . . Explosive 197 | . . 197 . Electromagnetic . | . . . . Impact . | . . . . Slashing . | . . . . Piercing . | . . . . Highest Corruption . | . . . . Average Corruption . | . . . . Corruption Purged . | . . . . Corruption Blocked . | . . . . Overload Shots . | . . . . Overflow Damage . | . . . . Projectiles . | . . . . Explosions . | . . . . Melee . | . . . . Knockbacks . | . . . . Impact . | . . . . Kinetic . | . . . . Secondary . | . . . . Self-Inflicted Damage 13 | . . 13 . Shots 1 | . . 1 . Rammed . | . . . . Targets Rammed . | . . . . Kicked . | . . . . Crushed . | . . . . Highest Temperature 318 | . 318 . . Average Temperature 149 | . 149 . . Received Heat Transfer 342 | . 234 96 12 Effects 3 | . 3 . . Interference 2 | . 2 . . Matter Decay 1 | . 1 . . Siege Activations . | . . . . Robots Corrupted . | . . . . Combat Hostiles . | . . . . Parts Fried . | . . . . Impact Corruptions . | . . . . Robots Melted . | . . . . Combat Hostiles . | . . . . Parts Melted 2 | . 2 . . Heat Transferred 407 | . 407 . . Parts Sabotaged . | . . . . Parts Stolen . | . . . . Parts Stripped . | . . . . Power Chain Reactions . | . . . . Alert | -11 -10 -10 -7 ------- Run | Yrd Mat Sub Rec Peak Influence 295 | . 159 . 295 Initial 300 | . . . 300 Average 72 | . 38 . 291 Maximum Alert Level 1 | . . . 1 Low Security (%) 86 | 100 100 . . Level 1 13 | . . . 100 Level 2 . | . . . . Level 3 . | . . . . Level 4 . | . . . . Level 5 . | . . . . High Security . | . . . . Max Security . | . . . . Squads Dispatched 1 | . 1 . . Investigation 1 | . 1 . . Extermination . | . . . . Reinforcement . | . . . . Assault . | . . . . Garrison . | . . . . Intercept . | . . . . Searches Triggered . | . . . . Construction Impeded . | . . . . Haulers Reinforced . | . . . . Active Scanning Responses . | . . . . Cargo Convoy Interrupts . | . . . . Stealth | -11 -10 -10 -7 --------- Run | Yrd Mat Sub Rec Distress Signals . | . . . . Communications Jammed . | . . . . Distress Signals . | . . . . Times Spotted 38 | . 18 19 1 Peak Tracking Total 5 | . 5 4 1 Tactical Retreats 4 | . . 4 . Traps | -11 -10 -10 -7 ------- Run | Yrd Mat Sub Rec Traps Triggered 2 | . 1 1 . Indirectly . | . . . . Trap Hack Attempts . | . . . . Triggered . | . . . . Disarmed . | . . . . Reprogrammed . | . . . . Reused . | . . . . Traps Extracted . | . . . . Installed . | . . . . Triggered . | . . . . Machines | -11 -10 -10 -7 ---------- Run | Yrd Mat Sub Rec Machines Disabled 4 | . 1 3 . Max in Single Turn 2 | . 1 2 . Machines Repaired . | . . . . Machines Dismantled . | . . . . Machines Sabotaged . | . . . . Overloaded Fab Kills . | . . . . Hacking | -11 -10 -10 -7 --------- Run | Yrd Mat Sub Rec Machines Accessed 5 | . 3 1 1 Terminals 4 | . 3 . 1 Fabricators . | . . . . Repair Stations . | . . . . Recycling Units . | . . . . Scanalyzers . | . . . . Garrison Access . | . . . . Total Hacks 23 | . 11 9 3 Successful 18 | . 8 9 1 Failed 5 | . 3 . 2 Catastrophic . | . . . . Database Lockouts . | . . . . Manual 10 | . 10 . . Terminals 14 | . 11 . 3 Fabricators . | . . . . Repair Stations . | . . . . Recycling Units . | . . . . Scanalyzers . | . . . . Garrison Access . | . . . . Terminal Hacks 12 | . 2 9 1 Record 8 | . . 8 . Part Schematic 1 | . . . 1 Robot Analysis 1 | . 1 . . Terminal Index 1 | . 1 . . Derelict Proto ID Bank 1 | . . 1 . Fabricator Hacks . | . . . . Repair Station Hacks . | . . . . Recycling Unit Hacks . | . . . . Scanalyzer . | . . . . Garrison Access Hacks . | . . . . Unauthorized Hacks 6 | . 6 . . Terminals 6 | . 6 . . Track 2 | . 2 . . Botnet 3 | . 3 . . Operators 1 | . 1 . . Fabricators . | . . . . Repair Stations . | . . . . Recycling Units . | . . . . Scanalyzers . | . . . . Garrison Access . | . . . . Data Cores Recovered . | . . . . Used . | . . . . Hacking Detections 4 | . 3 . 1 Full Trace Events . | . . . . Feedback Events . | . . . . Feedback Blocked . | . . . . Robot Schematics Acquired . | . . . . Robots Built . | . . . . Authchips . | . . . . Time . | . . . . Total Robot Build Rating . | . . . . Part Schematics Acquired 1 | . . . 1 Parts Built . | . . . . Authchips . | . . . . Time . | . . . . Total Part Build Rating . | . . . . Parts Repaired . | . . . . Time . | . . . . Parts Recycled . | . . . . Recycled Matter . | . . . . Retrieved Matter . | . . . . Retrieved Components . | . . . . Parts Scanalyzed . | . . . . Part Schematics Acquired . | . . . . Parts Damaged . | . . . . Bothacking | -11 -10 -10 -7 ------------ Run | Yrd Mat Sub Rec Used RIF Installer . | . . . . Robots Hacked . | . . . . Non-combat . | . . . . Combat . | . . . . Robot Hacks Applied . | . . . . Relay Couplers Released . | . . . . Fabnet Peak Effective % . | . . . . Robots Rewired . | . . . . Allies Hacked . | . . . . Hacks Repelled . | . . . . Allies | -11 -10 -10 -7 -------- Run | Yrd Mat Sub Rec Total Allies . | . . . . Largest Group . | . . . . Highest-Rated Group . | . . . . Highest-Rated Ally . | . . . . Total Orders . | . . . . Ally Attacks . | . . . . Total Damage . | . . . . Kills . | . . . . Allies Corrupted . | . . . . Allies Melted . | . . . . Intel | -11 -10 -10 -7 ------- Run | Yrd Mat Sub Rec Robot Analysis Total 1 | . 1 . . Derelict Logs Recovered 1 | . . 1 . Drone Launches . | . . . . Drone Recoveries . | . . . . Exploration | -11 -10 -10 -7 ------------- Run | Yrd Mat Sub Rec Turns Passed 4010 | 64 1378 2335 233 Spaces Moved 1859 | 57 631 967 204 Core 57 | 57 . . . Treads . | . . . . Legs 118 | . 118 . . Wheels 1684 | . 513 967 204 Hover . | . . . . Flight . | . . . . Fastest Speed 50 | 50 90 130 100 Average Speed 121 | 85 119 130 100 Slowest Speed 150 | 150 130 130 100 Overloaded Moves . | . . . . Propulsion Burnouts . | . . . . Robots Hopped . | . . . . Cave-ins Triggered . | . . . . Exploration Rate (%) 42 | 4 62 61 44 Regions Visited 3 Branch Regions 2 Pre-discovered Areas 1 | . . 1 . Known Exits Taken . | . . . . Unknown Exits Taken 3 | 1 1 1 . Scrap Searched 2 | . . 2 . Spaces Dug 17 | . . 17 . Terrain Destroyed 36 | . . 36 . Melee 17 | . . 17 . Projectile . | . . . . AOE 19 | . . 19 . Terrain Rammed . | . . . . Walls Destroyed . | . . . . Machines Disabled . | . . . . Actions | -11 -10 -10 -7 --------- Run | Yrd Mat Sub Rec Total 3424 | 72 1166 1959 227 Wait 1342 | 6 423 913 . Move 1856 | 56 630 966 204 Hop . | . . . . Pick Up 48 | 5 31 6 6 Fast Attach 7 | 3 4 . . Attach 8 | . 5 2 1 Detach . | . . . . Swap 14 | 1 8 5 . Drop 29 | 1 15 7 6 Fire 97 | . 50 37 10 Melee 23 | . . 23 . Ram . | . . . . Kick . | . . . . Crush . | . . . . Escape Stasis . | . . . . Rewire . | . . . . Trap . | . . . . Miscellaneous . | . . . . Route ------- -11/Scrapyard -10/Materials (discovered 4 exits: [*Mat] / [*Min x2] / *Sub) -10/Subcaves (discovered 3 exits: [*Mat x2] / *Rec) -7/Recycling History --------- Turn | Location | Event 11 | -11/Scrapyard | Discovered new exit (range 15) 65 | -11/Scrapyard | Entered Materials 312 | -10/Materials | Build established: Mutant 569 | -10/Materials | Discovered new exit (range 4) 764 | -10/Materials | Discovered new exit (range 14) 1088 | -10/Materials | Discovered new exit (range 11) 1428 | -10/Materials | Discovered new exit (range 5) 1443 | -10/Materials | Entered Subcaves 1463 | -10/Subcaves | Learned location of Mines (-8) 2228 | -10/Subcaves | Visited 4L-MR0's lab 2241 | -10/Subcaves | Found Power Bank 2379 | -10/Subcaves | Core integrity fell below 50% 3548 | -10/Subcaves | Discovered new exit (range 5) 3550 | -10/Subcaves | Discovered new exit (range 13) 3699 | -10/Subcaves | Core integrity fell below 20% 3740 | -10/Subcaves | Discovered new exit (range 15) 3778 | -10/Subcaves | Entered Recycling 3780 | -7/Recycling | Found Scrap Engine 4011 | -7/Recycling | Destroyed by Y-54 Guardian with Flak Gun Last Messages --------------- 03807_ R-06 Scavenger collects Mak. Sword. 03809_ R-06 Scavenger inserts Transport Network Coupler into recycling unit. 03810_ Acquired Huge Storage Unit. 03812_ R-06 Scavenger inserts Signal Interpreter into recycling unit. 03827_ Scrap Engine envelopes itself in armor. 03914_ Destroyed Lgt. Ion Engine. 03922_ R-06 Scavenger destroyed. 03925_ Acquired 55 matter. 03926_ R-06 Scavenger collects Sml. Storage Unit. 03984_ Connecting with Terminal... 03984_ Current location identified: Recycling >>Schematic(Corruption Screen) Downloading schematic... Corruption Screen Rating: 4 Schematic downloaded. 04011_ Y-54 Guardian springs to life. Map ----- +----------------------------------------------------+ | ???# """ #???????? | | ???# """ #???????? | | ???# ####???????? | | ???# #??????????? | | ???# """ #######????? | | ???# """ # #????? | | ???# """ # #????? | | ???# + """ ##???? | | ???# ##### """ T#???? | | ???# """ #???# """ ##???? | | ???# """ ##### #????? | | ???# """ + #????? | | ???# ##### #????? | | ???# #???#######????? | | ???# #??????????????? | | ???# #??????????????? | | ???# ### #??????????????? | | ???# ??# ########???????? | | ???# ??# +??????? | | ???# ??# #####????????? | | ???? ??# #????????????? | | ???? ??# #????????????? | | ???????#+##+#######????????????? | | ???????# #??????????????? | | ???# ### """ #??????????????? | | ??#Y @ """ #??????????????? | | ???# ### """ #??????????????? | | ???????# #??????????????? | | ???????# """ #??????????????? | | ???????# """ #??????????????? | | ???????# """ #??????????????? | | ???????# #??????????????? | | ????????####?####??????????????? | | ???????????????????????????????? | | ???????????????????????????????? | | ???????????????????????????????? | | ???????????????????????????????? | | ???????????????????????????????? | | | | | | | | | | | | | | | | | | | | | | | | | +----------------------------------------------------+ Best States ------------- Heat Dissipation 35 Energy Generation 14 Energy Capacity 250 Matter Stores 300 Matter Capacity 300 Sight Range 16 Terrain Scan Density 10 Resistance: KI 20 Resistance: TH 20 Resistance: EX 20 Resistance: EM 20 Resistance: I 20 Resistance: S 20 Resistance: P 20 Evasion (%) 55 Offensive Hacking 10 Item Schematics ----------------- Corruption Screen | -7/Recycling | Hacked Robot Schematics ------------------ None Fabricated ------------ Nothing Alien Tech Used ----------------- None Achievements -------------- None Challenges ------------ None Game ------ Seed MetaSingularitySpear Manual? 0 Play Time 00:24:09 Cumulative 80.5 hours Start 2024.07.25 @ 10:42:20 End 2024.07.25 @ 11:55:08 Sessions 1 Manual Loads 0 Difficulty Adventurer Special Mode None Game No. 117 Rogue 0 Adventurer 117 Explorer 0 Win Type - Total 0 Types 0/0/0/0/0/0/0/0/0 Lore% 44 Gallery% 46 Achievement% 33 Wizard Run 0 Options --------- Layout 2 ASCII 0 Keyboard 0 Movement Mouse Keybinds 0 Fullscreen 2 Font 48/Smallcaps Map View 50x44 Zoom Use 0% Tactical HUD 1 Map Filters NONE Filters NONE Steam 1 RUN: 04c979a4-ef53-4f45-b8a8-60bc08204461